fUSD/lending_fUSD_20250212
["ID","MTS","AMOUNT","RATE_DAILY","PERIOD"]
[352802054,1739326258398,-500.0,0.00017397,2]
[352802055,1739326258408,-3884.81375033,0.00019,2]
[352802056,1739326258420,-10381.60000004,0.00019,2]
[352802057,1739326258431,-510.19077003,0.00019,2]
[352802059,1739326333626,3882.6592,8.699e-05,2]
[352802060,1739326341691,255.7597,8.836e-05,2]
[352802061,1739326360414,1085.9565,8.836e-05,2]
[352802062,1739326368810,3741.3403,8.836e-05,2]
[352802063,1739326387465,484.9849,8.836e-05,2]
[352802065,1739326478372,1493.4753,8.836e-05,2]
[352802067,1739326511140,794.2375,8.836e-05,2]
[352802068,1739326542362,392.8481,8.836e-05,2]
[352802069,1739326615109,6584.7162,8.836e-05,2]
[352802070,1739326627682,227.3268,8.836e-05,2]
[352802071,1739326747818,2611.4241,8.836e-05,2]
[352802072,1739326773803,787.8945,8.836e-05,2]
[352802074,1739326806196,35037.61,8.836e-05,2]
[352802075,1739326806227,542120.2914,8.836e-05,2]
[352802102,1739327257261,259.65308368,0.00020479,120]
[352802103,1739327275805,260.95211139,0.00020475,120]
[352802120,1739327420179,270.0,0.0002,120]
[352802132,1739327432438,-2254.0905,8.973e-05,2]
[352802133,1739327432449,-4553.8394,8.973e-05,2]
[352802134,1739327432459,-700.0,9.7e-05,3]
[352802135,1739327432468,-1400.0,9.8e-05,3]
[352802136,1739327432479,-2100.0,9.9e-05,3]
[352802137,1739327432489,-501.4079434,9.973e-05,2]
[352802138,1739327432499,-500.33592895,9.973e-05,2]
[352802139,1739327432509,-505.71053102,9.973e-05,2]
[352802140,1739327432520,-150.0,9.998e-05,2]
[352802141,1739327432530,-500.0,9.999e-05,2]
[352802142,1739327432540,-500.0,9.999e-05,2]
[352802143,1739327432550,-500.0,9.999e-05,2]
[352802144,1739327432560,-500.0,9.999e-05,2]
[352802145,1739327432570,-500.0,9.999e-05,2]
[352802146,1739327432580,-500.0,9.999e-05,2]
[352802147,1739327432590,-500.0,9.999e-05,2]
[352802148,1739327432599,-500.0,9.999e-05,2]
[352802149,1739327432608,-500.0,9.999e-05,2]
[352802150,1739327432618,-500.0,9.999e-05,2]
[352802151,1739327432627,-500.0,9.999e-05,2]
[352802152,1739327432637,-300.0,9.999e-05,2]
[352802153,1739327432647,-500.0,9.999e-05,2]
[352802154,1739327432656,-112071.78333904,0.0001,2]
[352802155,1739327432668,-59037.95335292,0.0001,2]
[352802156,1739327432680,-50505.0,0.0001,2]
[352802157,1739327432691,-400.86620647,0.0001,2]
[352802158,1739327432708,-3860.02648129,0.0001,2]
[352802159,1739327432757,-1908308.48858801,0.0001,2]
[352802229,1739327438475,-704.97150653,0.0001,2]
[352802247,1739327443398,-5859.46637749,0.0001,2]
[352802249,1739327482909,342.323,8.836e-05,2]
[352802250,1739327485493,1751.8891,8.699e-05,2]
[352802251,1739327568987,155.2481,8.699e-05,2]
[352802265,1739328224953,363.57,8e-05,2]
[352802266,1739328283839,1000.0,0.00013589,30]
[352802267,1739328284488,1000.0,0.00013589,30]
[352802268,1739328284792,1000.0,0.00013589,30]
[352802269,1739328291063,500.0,0.00013589,30]
[352802303,1739328631622,-1926.7654,8.851e-05,2]
[352802304,1739328631633,-5000.0,8.973e-05,2]
[352802305,1739328631643,-3886.664,9.8e-05,2]
[352802306,1739328631653,-284.80494272,9.8e-05,2]
[352802307,1739328631664,-501.4079434,9.973e-05,2]
[352802308,1739328631673,-166.48320898,9.973e-05,2]
[352802309,1739328631682,-500.33592895,9.973e-05,2]
[352802310,1739328631692,-505.71053102,9.973e-05,2]
[352802311,1739328631701,-150.0,9.998e-05,2]
[352802312,1739328631711,-500.0,9.999e-05,2]
[352802313,1739328631720,-500.0,9.999e-05,2]
[352802314,1739328631729,-500.0,9.999e-05,2]
[352802315,1739328631739,-500.0,9.999e-05,2]
[352802316,1739328631749,-500.0,9.999e-05,2]
[352802317,1739328631758,-500.0,9.999e-05,2]
[352802318,1739328631768,-600.0,9.999e-05,2]
[352802319,1739328631782,-300.0,9.999e-05,2]
[352802320,1739328631791,-500.0,9.999e-05,2]
[352802321,1739328631801,-500.0,9.999e-05,2]
[352802322,1739328631811,-500.0,9.999e-05,2]
[352802323,1739328631821,-300.0,9.999e-05,2]
[352802324,1739328631830,-5912.14848695,0.0001,2]
[352802325,1739328631842,-1080.20727463,0.0001,2]
[352802326,1739328631883,-915.47591036,0.0001,2]
[352802327,1739328631896,-17838.99777996,0.0001,2]
[352802356,1739328637698,-442.77788711,0.0001,2]
[352802357,1739328637710,-342.45445897,0.0001,2]
[352802541,1739328639694,-12034.848552,0.0001,2]
[352802548,1739328639746,-919.99639479,0.0001,2]
[352802563,1739328639924,-307.93435973,0.0001,2]
[352802565,1739328639940,-724.49291622,0.0001,2]
[352802587,1739328642613,-2669.60624758,0.0001,2]
[352802588,1739328642628,-120500.0,0.0001,2]
[352802590,1739329095388,1347.4733,8.836e-05,2]
[352802623,1739329798447,162.32,8.679e-05,2]
[352802637,1739329831743,-565.5527439,8.851e-05,2]
[352802638,1739329831756,-1339.5904561,8.851e-05,2]
[352802639,1739329831766,-647.1794,8.973e-05,2]
[352802640,1739329831775,-500.0,9.219e-05,2]
[352802641,1739329831785,-250.56506851,9.735e-05,2]
[352802642,1739329831796,-1587.35583697,9.735e-05,2]
[352802643,1739329831815,-331.99493608,9.735e-05,2]
[352802644,1739329831952,-1933.82557355,9.735e-05,2]
[352802645,1739329831965,-1998.10131452,9.735e-05,2]
[352802646,1739329831978,-452.08295896,9.735e-05,2]
[352802647,1739329831989,-295.63804909,9.735e-05,2]
[352802648,1739329832009,-207.21690319,9.735e-05,2]
[352802649,1739329832019,-56.21338895,9.736e-05,2]
[352802650,1739329832118,-93.78661105,9.736e-05,2]
[352802651,1739329832129,-500.0,9.736e-05,2]
[352802652,1739329832139,-500.0,9.736e-05,2]
[352802653,1739329832148,-162.32,9.764e-05,2]
[352802654,1739329832158,-150.0,9.999e-05,2]
[352802655,1739329832167,-1595.93987909,0.0001,2]
[352802744,1739329837575,-297.99291319,0.0001,2]
[352802746,1739329837629,-20614.22317209,0.0001,2]
[352802747,1739329837683,-4885.88494569,0.0001,2]
[352802748,1739329837696,-871.09846821,0.0001,2]
[352802749,1739329837738,-476.81295156,0.0001,2]
[352802750,1739329837792,-5394.37436572,0.0001,2]
[352802751,1739329837804,-437.70943335,0.0001,2]
[352802752,1739329837844,-376.0213201,0.0001,2]
[352802753,1739329837857,-3391.46814228,0.0001,2]
[352802962,1739329839786,-4766.62310431,0.0001,2]
[352802964,1739329839798,-1950.0,0.0001,2]
[352803016,1739329840312,-47753.00021388,0.0001,2]
[352803021,1739329840367,-54184.24001665,0.0001,2]
[352803160,1739329843091,-936.55277113,0.0001,2]
[352803171,1739329843197,-65848.65584544,0.0001,2]
[352803174,1739329843209,-18168.45089744,0.0001,2]
[352803179,1739329843249,-11971.57773768,0.0001,2]
[352803202,1739329845759,-584.84999983,0.0001,2]
[352803203,1739329845970,-404.71906671,0.0001,2]
[352803204,1739329846182,-187292.13779173,0.0001,2]
[352803205,1739329846192,-439.28683,0.0001,2]
[352803206,1739329846203,-436.6440767,0.0001,2]
[352803207,1739329846214,-271.43,0.00010137,2]
[352803208,1739329846226,-151.46,0.00010137,2]
[352803209,1739329846235,-894.76,0.00010202,2]
[352803210,1739329846246,-162.32,0.00010849,2]
[352803211,1739329846255,-6851.96130157,0.0001093,2]
[352803212,1739329846267,-17048.03869843,0.0001093,2]
[352803213,1739329846277,-174.34,0.00011042,2]
[352803214,1739329846287,-200.96,0.00011093,2]
[352803216,1739329846297,-176.54682881,0.00011099,2]
[352803217,1739329846306,-1500.0,0.00011116,2]
[352803218,1739329846316,-200.0,0.00011184,2]
[352803219,1739329846325,-250.0,0.0001119,2]
[352803220,1739329846334,-1593.41,0.00011296,2]
[352803221,1739329846344,-500.0,0.00011317,2]
[352803222,1739329846354,-250.0,0.00011343,2]
[352803223,1739329846364,-1000.0,0.00011345,2]
[352803224,1739329846373,-2932.9,0.00011355,2]
[352803225,1739329846384,-306.54,0.00011425,2]
[352803226,1739329846393,-3272.36,0.0001158,2]
[352803227,1739329846403,-1285.48107798,0.00011764,2]
[352803228,1739329846414,-667.3,0.0001179,2]
[352803229,1739329846424,-162.32,0.00011934,2]
[352803230,1739329846434,-1158.36821191,0.00011989,2]
[352803231,1739329846444,-296.59,0.00012081,2]
[352803232,1739329846454,-176.54682879,0.0001225,2]
[352803233,1739329846463,-894.76,0.00012466,2]
[352803234,1739329846473,-200.96,0.0001248,2]
[352803235,1739329846483,-1000.0,0.00012764,2]
[352803236,1739329846493,-156.69,0.00012777,2]
[352803237,1739329846503,-156.69,0.00012793,2]
[352803238,1739329846516,-156.69,0.00012809,2]
[352803239,1739329846526,-156.69,0.00012825,2]
[352803240,1739329846538,-156.69,0.00012841,2]
[352803241,1739329846548,-700.0,0.000129,4]
[352803242,1739329846559,-30290.09851987,0.00013,2]
[352803243,1739329846570,-550.0,0.00013,2]
[352803244,1739329846580,-162.32,0.00013019,2]
[352803245,1739329846590,-1158.36821191,0.00013034,2]
[352803246,1739329846600,-171608.3416223,0.000135,2]
[352803248,1739329949797,518.5029,8.699e-05,2]
[352803260,1739330238633,11438.2076,8.836e-05,2]
[352803273,1739330817690,155.226271,0.0002,120]
[352803297,1739331031828,-519.3438,8.973e-05,2]
[352803299,1739331031839,-805.28,0.00012216,2]
[352803301,1739331031849,-154.8712489,0.00013229,2]
[352803303,1739331031859,-182.27891133,0.00013269,2]
[352803305,1739331031869,-366.07235,0.0001336,2]
[352803306,1739331031880,-3872.15368977,0.00013369,2]
[352803307,1739331031938,-541.345,0.00013369,2]
[352803308,1739331031950,-1505.30806944,0.00013369,2]
[352803309,1739331031960,-300.0,0.00013499,2]
[352803310,1739331031970,-6649.62040388,0.000135,2]
[352803311,1739331031982,-1251.99542267,0.000135,2]
[352803312,1739331032157,-791.00211188,0.000135,2]
[352803313,1739331032170,-1108.99788812,0.000135,2]
[352803314,1739331032267,-795.57,0.000135,2]
[352803824,1739331037805,-1860.04352126,0.000135,2]
[352803831,1739331037862,-12014.42611846,0.000135,2]
[352803833,1739331037874,-1814.03961151,0.000135,2]
[352803836,1739331037886,-6409.82392561,0.000135,2]
[352803838,1739331037898,-506.57379997,0.000135,2]
[352803841,1739331037919,-630.69068571,0.000135,2]
[352803843,1739331037931,-4087.13897112,0.000135,2]
[352803849,1739331037978,-3655.2800516,0.000135,2]
[352803856,1739331038038,-2861.79170424,0.000135,2]
[352804080,1739331040056,-376.89922904,0.000135,2]
[352804082,1739331040068,-1296.27684565,0.000135,2]
[352804085,1739331040080,-778.4445,0.000135,2]
[352804087,1739331040092,-9085.78733582,0.000135,2]
[352804626,1739331045903,-1382.31787916,0.000135,2]
[352804653,1739331046121,-467.96961399,0.000135,2]
[352804657,1739331046189,-17562.5685548,0.000135,2]
[352804660,1739331046202,-16507.62020321,0.000135,2]
[352804662,1739331046212,-194.0,0.000135,5]
[352804664,1739331046222,-194.0,0.000135,6]
[352804666,1739331046232,-193.34,0.000135,7]
[352804668,1739331046242,-200.0,0.000135,2]
[352804670,1739331046254,-155.11,0.00013699,2]
[352804672,1739331046263,-1000.0,0.00013753,30]
[352804674,1739331046273,-294.27580358,0.00013758,2]
[352804676,1739331046282,-691.13,0.00013773,2]
[352804678,1739331046293,-500.0,0.00013782,2]
[352804680,1739331046303,-302.76,0.00013794,2]
[352804682,1739331046313,-1000.0,0.00013808,30]
[352804684,1739331046323,-1000.0,0.00013863,30]
[352804686,1739331046333,-200.96,0.00013866,2]
[352804688,1739331046344,-23900.0,0.00013893,2]
[352804690,1739331046353,-1000.0,0.00013918,30]
[352804692,1739331046363,-1000.0,0.00013973,30]
[352804694,1739331046372,-1000.0,0.00014027,30]
[352804696,1739331046382,-33417.00714185,0.00014027,2]
[352804698,1739331046392,-250.0,0.00014038,2]
[352804700,1739331046402,-165.83,0.00014046,2]
[352804702,1739331046411,-2505.73362596,0.00014046,2]
[352804704,1739331046420,-1000.0,0.00014082,30]
[352804706,1739331046430,-1000.0,0.00014095,2]
[352804708,1739331046441,-200.0,0.00014129,2]
[352804710,1739331046452,-1000.0,0.00014137,30]
[352804712,1739331046462,-1000.0,0.00014192,30]
[352804714,1739331046472,-1000.0,0.00014247,30]
[352804716,1739331046482,-170.82,0.00014419,2]
[352804718,1739331046495,-805.28,0.0001448,2]
[352804720,1739331046508,-19999.99,0.00014504,2]
[352804722,1739331046519,-1000.0,0.00014575,30]
[352804724,1739331046531,-1000.0,0.0001463,30]
[352804726,1739331046540,-1000.0,0.00014685,30]
[352804728,1739331046551,-7286.336681,0.00014726,2]
[352804730,1739331046562,-1000.0,0.0001474,30]
[352804732,1739331046572,-1000.0,0.00014795,30]
[352804734,1739331046582,-420.0,0.00014796,2]
[352804736,1739331046592,-1000.0,0.00014849,30]
[352804739,1739331046602,-1000.0,0.00014904,30]
[352804740,1739331046612,-1000.0,0.00014959,30]
[352804742,1739331046621,-1158.27627364,0.00015,2]
[352804744,1739331046631,-932.2567449,0.00015,2]
[352804747,1739331046644,-940.24594319,0.00015,2]
[352805020,1739332232026,-257.85,0.00010137,2]
[352805021,1739332232038,-3078.91602723,0.00012,2]
[352805022,1739332232132,-1478.34689998,0.00012,2]
[352805023,1739332232239,-384.90875562,0.00012,2]
[352805024,1739332232248,-369.20124438,0.00013,2]
[352805025,1739332232262,-180.79875562,0.00013,2]
[352805026,1739332232271,-155.11,0.00013699,2]
[352805027,1739332232282,-200.0,0.00014361,2]
[352805028,1739332232291,-69.29124448,0.00014432,2]
[352805029,1739332232307,-430.70875552,0.00014432,2]
[352805030,1739332232317,-1107.15224517,0.00014438,2]
[352805031,1739332232346,-392.84775483,0.00014438,2]
[352805032,1739332232357,-1000.0,0.00014517,2]
[352805033,1739332232366,-178.48,0.00014517,2]
[352805034,1739332232376,-1108.52478256,0.00014554,2]
[352805058,1739332237930,-321.1250003,0.00014554,2]
[352805059,1739332238040,-21821.64021714,0.00014554,2]
[352805060,1739332238050,-154.8712489,0.00014699,2]
[352805061,1739332238060,-250.0,0.00014819,2]
[352805062,1739332238070,-500.0,0.00014879,2]
[352805063,1739332238079,-500.0,0.0001488,2]
[352805064,1739332238090,-500.0,0.0001488,2]
[352805065,1739332238100,-811.83942909,0.00014978,2]
[352805066,1739332238111,-3640.61599174,0.00014978,2]
[352805067,1739332238124,-305.23157509,0.00014978,2]
[352805068,1739332238146,-16054.14243317,0.00014978,2]
[352805069,1739332238156,-200.0,0.00014996,2]
[352805070,1739332238166,-2027.49731191,0.00015,2]
[352805071,1739332238176,-600.0,0.00015,2]
[352805072,1739332238185,-1338.36025492,0.00015,2]
[352805073,1739332238197,-1454.3225435,0.00015,2]
[352805074,1739332238209,-916.34,0.00015,2]
[352805075,1739332238252,-1522.85,0.00015,2]
[352805077,1739332238264,-778.83225868,0.00015,2]
[352805249,1739332240085,-739.71066653,0.00015,2]
[352805252,1739332240098,-2925.6780258,0.00015,2]
[352805257,1739332240141,-5983.08661438,0.00015,2]
[352805259,1739332240151,-1550.52,0.00015,2]
[352805261,1739332240161,-328.64,0.00015,2]
[352805263,1739332240172,-305.0603,0.00015,2]
[352805265,1739332240183,-1000.0,0.00015014,30]
[352805267,1739332240192,-200.0,0.00015015,2]
[352805269,1739332240202,-1000.0,0.00015068,30]
[352805271,1739332240212,-500.0,0.00015164,2]
[352805273,1739332240222,-500.0,0.00015164,2]
[352805275,1739332240232,-1000.0,0.00015397,30]
[352805277,1739332240241,-1000.0,0.00015452,30]
[352805279,1739332240251,-542.49844781,0.000155,3]
[352805282,1739332240265,-24797.86982936,0.000155,3]
[352805284,1739332240278,-1787.93298377,0.000155,3]
[352805286,1739332240290,-462.00995226,0.000155,3]
[352805291,1739332240323,-2429.4141106,0.000155,3]
[352805293,1739332240334,-66184.19096573,0.000155,3]
[352805295,1739332240346,-424.71519204,0.000155,3]
[352805298,1739332240365,-10310.28202644,0.000155,3]
[352805309,1739332240460,-577.46205938,0.000155,3]
[352805311,1739332240472,-4024.93927796,0.000155,3]
[352805550,1739332243184,-485.305,0.000155,3]
[352805562,1739332243294,-4056.50578204,0.000155,3]
[352805568,1739332243342,-2041.14359739,0.000155,3]
[352805575,1739332243396,-643.3159777,0.000155,3]
[352805843,1739332246134,-851.19,0.000155,3]
[352805846,1739332246149,-1081.03146575,0.000155,3]
[352805862,1739332246300,-16217.62646775,0.000155,3]
[352805867,1739332246351,-4745.37924818,0.000155,3]
[352805942,1739332251925,2773.0016,8.973e-05,2]
[352805943,1739332346613,290.7457,8.973e-05,2]
[352805945,1739332478094,4900.0,0.00020494,120]
[352805946,1739332672489,1010.11,0.0002,120]
[352805948,1739332891016,4959.91020776,0.00020495,120]
[352805949,1739332920976,2773.12721282,0.00020495,120]
[352805967,1739333352981,500.0,0.0002,120]
[352805968,1739333362038,500.0,0.0002,120]
[352805975,1739333432250,-151.46,0.00010137,2]
[352805976,1739333432260,-850.94,0.00013079,2]
[352805977,1739333432270,-23900.0,0.00014479,2]
[352805978,1739333432279,-306.33,0.00014494,2]
[352805979,1739333432288,-200.0,0.00014501,2]
[352805980,1739333432298,-500.0,0.00014538,2]
[352805981,1739333432307,-1500.0,0.00014556,2]
[352805982,1739333432317,-1000.0,0.00014647,2]
[352805983,1739333432326,-250.0,0.00014659,2]
[352805984,1739333432335,-200.0,0.00014739,2]
[352805985,1739333432344,-150.0,0.00014775,2]
[352805986,1739333432355,-1487.633752,0.00014776,2]
[352805987,1739333432368,-1393.45825091,0.00014776,2]
[352805988,1739333432384,-296.880003,0.00014776,2]
[352805989,1739333432464,-3641.28799409,0.00014776,2]
[352805990,1739333432473,-477.89402814,0.00014776,2]
[352805991,1739333432485,-7584.80622634,0.00014776,2]
[352805992,1739333432623,-11937.28974552,0.00014776,2]
[352805993,1739333432632,-619.11,0.00014802,2]
[352805994,1739333432642,-18119.0,0.00014815,2]
[352805995,1739333432652,-1852.42,0.00014997,2]
[352805996,1739333432664,-3510.0,0.00015,2]
[352805997,1739333432674,-500.0,0.00015043,2]
[352805998,1739333432683,-444.78,0.000151,2]
[352805999,1739333432692,-304.26685204,0.00015164,2]
[352806000,1739333432701,-500.0,0.00015164,2]
[352806001,1739333432711,-254.21691,0.00015164,2]
[352806002,1739333432720,-505.95,0.00015164,2]
[352806003,1739333432729,-497.21,0.00015164,2]
[352806004,1739333432739,-507.15,0.00015223,2]
[352806005,1739333432748,-505.77,0.00015259,2]
[352806006,1739333432759,-500.37,0.00015317,2]
[352806007,1739333432769,-850.94,0.00015343,2]
[352806008,1739333432779,-1660.8685289,0.00015489,2]
[352806009,1739333432788,-507.06,0.000155,2]
[352806010,1739333432799,-493.45,0.000155,2]
[352806012,1739333432808,-1000.0,0.000155,2]
[352806013,1739333432817,-1000.0,0.00015507,30]
[352806014,1739333432827,-999.37,0.00015534,2]
[352806015,1739333432836,-150.0,0.00015534,2]
[352806016,1739333432846,-375.71,0.00015534,2]
[352806017,1739333432855,-1000.0,0.00015562,30]
[352806018,1739333432864,-1000.0,0.00015616,30]
[352806019,1739333432873,-1000.0,0.00015671,30]
[352806020,1739333432883,-1000.0,0.00015726,30]
[352806021,1739333432893,-1000.0,0.00015781,30]
[352806022,1739333432902,-1000.0,0.00015836,30]
[352806023,1739333432913,-1000.0,0.0001589,30]
[352806024,1739333432923,-152.71656175,0.000159,2]
[352806025,1739333432932,-559.21,0.00015919,2]
[352806026,1739333432942,-26734.27405362,0.00015945,2]
[352806027,1739333432951,-1000.0,0.00015945,30]
[352806028,1739333432961,-458.94,0.0001599,2]
[352806029,1739333432970,-500.0,0.00015999,2]
[352806030,1739333432980,-500.0,0.00015999,2]
[352806031,1739333432990,-300.0,0.00015999,2]
[352806032,1739333432999,-271.2492239,0.00015999,3]
[352806033,1739333433009,-1000.0,0.00016,30]
[352806034,1739333433019,-26669.84599539,0.00016,2]
[352806036,1739333438368,-2005.89856982,0.00015999,3]
[352806205,1739333440248,-2163.86335338,0.00015999,3]
[352806206,1739333440261,-648.02500001,0.00015999,3]
[352806480,1739333443285,-3077.24755272,0.00015999,3]
[352806823,1739333446520,-955.955,0.00015999,3]
[352807012,1739333527245,21474.0048,8.836e-05,2]
[352807014,1739333567024,6376.4095,8.836e-05,2]
[352807015,1739333645981,15388.1634,8.836e-05,2]
[352807017,1739334126999,2692.256,0.00020494,120]
[352807018,1739334309033,3953697.675,0.0001,2]
[352807042,1739334631423,-600.0,9.9e-05,3]
[352807044,1739334631434,-500.0,9.973e-05,2]
[352807046,1739334631444,-54146.42775542,0.0001,2]
[352807048,1739334631456,-34859.09566207,0.0001,2]
[352807049,1739334631477,-1298.24234568,0.0001,2]
[352807050,1739334631490,-1028.79,0.0001,2]
[352807051,1739334631501,-254.33428482,0.0001,2]
[352807052,1739334631585,-1143.87326722,0.0001,2]
[352807053,1739334631804,-7715.60334819,0.0001,2]
[352807054,1739334631816,-422.04777612,0.0001,2]
[352807152,1739334637407,-23939.57200002,0.0001,2]
[352807388,1739334639595,-1710.19482885,0.0001,2]
[352807401,1739334639650,-2357.2,0.0001,2]
[352807559,1739334642575,-190131.65459023,0.0001,2]
[352807588,1739334645648,-284.5072946,0.0001,2]
[352807667,1739334655954,314.21592914,0.00020494,120]
[352807668,1739334777569,45595.3326,8.836e-05,2]
[352807670,1739335428570,1089.47,0.00020525,120]
[352807671,1739335458276,500.0,0.00020525,120]
[352807693,1739335831672,-962.22,8.879e-05,2]
[352807694,1739335831683,-14577.6738,8.973e-05,2]
[352807695,1739335831692,-150.0,9.767e-05,2]
[352807696,1739335831702,-4202.508,9.8e-05,2]
[352807697,1739335831712,-205.822,9.8e-05,2]
[352807698,1739335831721,-2300.0,9.9e-05,3]
[352807699,1739335831731,-500.0,9.973e-05,2]
[352807700,1739335831740,-730.52274736,9.999e-05,2]
[352807701,1739335831749,-500.0,9.999e-05,2]
[352807702,1739335831761,-500.0,9.999e-05,2]
[352807703,1739335831771,-500.0,9.999e-05,2]
[352807704,1739335831781,-500.0,9.999e-05,2]
[352807705,1739335831790,-500.0,9.999e-05,2]
[352807706,1739335831799,-500.0,9.999e-05,2]
[352807707,1739335831809,-381.9995596,9.999e-05,2]
[352807708,1739335831818,-875931.02245025,0.0001,2]
[352807709,1739335831835,-9432.41340714,0.0001,2]
[352807710,1739335831846,-650.5992912,0.0001,2]
[352807711,1739335831858,-803.28453,0.0001,2]
[352807712,1739335831869,-520.41993916,0.0001,2]
[352807713,1739335831891,-324.92886602,0.0001,2]
[352807714,1739335831903,-6995.05789406,0.0001,2]
[352807715,1739335831915,-472.12295122,0.0001,2]
[352807716,1739335831927,-2911.52205608,0.0001,2]
[352807717,1739335831938,-506.46784458,0.0001,2]
[352807718,1739335831949,-26708.66349665,0.0001,2]
[352807719,1739335831960,-39065.18566982,0.0001,2]
[352807720,1739335831972,-1209.496,0.0001,2]
[352807721,1739335831983,-6497.1886532,0.0001,2]
[352807722,1739335831994,-1677.34175643,0.0001,2]
[352807723,1739335832039,-345507.91362385,0.0001,2]
[352807724,1739335832049,-164507.38306882,0.0001,2]
[352807725,1739335832060,-964.45949963,0.0001,2]
[352807726,1739335832071,-26367.63504544,0.0001,2]
[352807727,1739335832081,-151.13475468,0.0001,2]
[352807728,1739335832090,-176.42429645,0.0001,2]
[352807729,1739335832099,-3474.37085189,0.0001,3]
[352807730,1739335832112,-1225.62914811,0.0001,3]
[352807731,1739335832121,-1591.88115,0.0001,2]
[352807733,1739335832131,-609.99115792,0.0001,2]
[352807735,1739335832141,-288.33,0.00010137,2]
[352807737,1739335832151,-404.84447284,0.00010305,2]
[352807739,1739335832164,-500.0,0.00010475,2]
[352807741,1739335832173,-598.17608522,0.00010521,2]
[352807743,1739335832182,-404.84447284,0.00010593,2]
[352807745,1739335832193,-743.12,0.00010717,2]
[352807747,1739335832202,-404.84447284,0.00010742,2]
[352807749,1739335832211,-162.92955986,0.000109,2]
[352807751,1739335832221,-7100.0,0.000109,3]
[352807753,1739335832231,-151.0,0.00010921,2]
[352807755,1739335832241,-151.0,0.00010921,2]
[352807757,1739335832251,-151.0,0.00010921,2]
[352807759,1739335832262,-151.0,0.00010921,2]
[352807761,1739335832271,-151.0,0.00010921,2]
[352807763,1739335832281,-151.0,0.00010921,2]
[352807765,1739335832290,-151.0,0.00010921,2]
[352807768,1739335832300,-151.0,0.00010921,2]
[352807769,1739335832309,-151.0,0.00010921,2]
[352807771,1739335832318,-151.0,0.00010921,2]
[352807773,1739335832327,-151.0,0.00010921,2]
[352807775,1739335832337,-151.0,0.00010921,2]
[352807777,1739335832347,-151.0,0.00010921,2]
[352807780,1739335832356,-151.0,0.00010921,2]
[352807782,1739335832366,-151.0,0.00010921,2]
[352807784,1739335832375,-151.0,0.00010921,2]
[352807786,1739335832385,-151.0,0.00010921,2]
[352807788,1739335832395,-151.0,0.00010921,2]
[352807789,1739335832404,-151.0,0.00010921,2]
[352807792,1739335832414,-151.0,0.00010921,2]
[352807793,1739335832424,-151.0,0.00010921,2]
[352807794,1739335832433,-151.0,0.00010921,2]
[352807796,1739335832443,-151.0,0.00010921,2]
[352807798,1739335832452,-151.0,0.00010921,2]
[352807800,1739335832461,-151.0,0.00010921,2]
[352807802,1739335832470,-151.0,0.00010921,2]
[352807804,1739335832480,-151.0,0.00010921,2]
[352807806,1739335832489,-151.0,0.00010921,2]
[352807808,1739335832498,-151.0,0.00010921,2]
[352807810,1739335832508,-151.0,0.00010921,2]
[352807811,1739335832519,-151.0,0.00010921,2]
[352807813,1739335832528,-151.0,0.00010921,2]
[352807815,1739335832538,-151.0,0.00010921,2]
[352807817,1739335832547,-151.0,0.00010921,2]
[352807819,1739335832557,-171.45822614,0.00010921,2]
[352807821,1739335832567,-1021.91782491,0.00010921,2]
[352807824,1739335832579,-2595.3150386,0.00010921,2]
[352807826,1739335832591,-646.9888024,0.00010921,2]
[352807828,1739335832602,-7858.54724254,0.00010921,2]